fUST/lending_fUST_20240324
["ID","MTS","AMOUNT","RATE_DAILY","PERIOD"]
[320319800,1711288243962,-151.0,0.0007,120]
[320319802,1711288243972,-1000.0,0.0007,90]
[320319804,1711288243981,-200.0,0.0007,120]
[320319806,1711288243990,-1000.0,0.00071203,120]
[320319808,1711288243999,-500.0,0.00071232,120]
[320319810,1711288244008,-151.0,0.0007126,120]
[320319812,1711288244017,-150.23137857,0.00071717,120]
[320319814,1711288244026,-151.0,0.00072521,120]
[320319816,1711288244036,-1450.0,0.00073,120]
[320319818,1711288244045,-459.262546,0.00073059,120]
[320319820,1711288244054,-151.0,0.00073781,120]
[320319822,1711288244063,-500.0,0.00073972,120]
[320319824,1711288244072,-1000.0,0.00074399,120]
[320319826,1711288244081,-238.48,0.0007468,120]
[320319827,1711288244091,-1148.78124106,0.0007485,120]
[320319829,1711288244102,-1148.78124106,0.00074851,120]
[320319831,1711288244112,-1148.78124106,0.00074881,120]
[320319833,1711288244123,-1148.78124106,0.00074898,120]
[320319836,1711288244133,-1148.78124106,0.00074937,120]
[320319837,1711288244142,-1148.78124106,0.00074946,120]
[320319839,1711288244152,-1148.78124106,0.00074957,120]
[320319841,1711288244161,-999.999999,0.00075,100]
[320319843,1711288244171,-151.0,0.00075041,120]
[320319845,1711288244182,-151.0,0.00076301,120]
[320319847,1711288244191,-500.0,0.00076712,120]
[320319849,1711288244201,-1075.70879064,0.00077,120]
[320319851,1711288244209,-151.0,0.00077562,120]
[320319853,1711288244218,-151.0,0.00078822,120]
[320319855,1711288244227,-470.420381,0.000789,30]
[320319857,1711288244236,-500.0,0.00079452,120]
[320319859,1711288244245,-1000.0,0.00079736,120]
[320319861,1711288244254,-10000.0,0.000799,120]
[320319863,1711288244263,-639.19400455,0.0008,120]
[320319865,1711288244272,-1000.0,0.0008,120]
[320319867,1711288244281,-1000.0,0.0008,120]
[320319869,1711288244290,-658.56990293,0.0008,50]
[320319870,1711288244299,-250.0,0.0008,120]
[320319872,1711288244309,-1443.35795191,0.0008,120]
[320319874,1711288244318,-200.0,0.0008,120]
[320319876,1711288244327,-150.97631891,0.0008,120]
[320319878,1711288244337,-51369.55214238,0.0008,120]
[320319880,1711288244346,-151.0,0.00080082,120]
[320319882,1711288244356,-151.0,0.00081342,120]
[320319884,1711288244368,-500.0,0.00082191,120]
[320319886,1711288244378,-599.0,0.00082191,120]
[320319888,1711288244388,-151.0,0.00082603,120]
[320319890,1711288244397,-1323.5406184,0.000834,77]
[320319892,1711288244408,-459.262546,0.00083714,120]
[320319894,1711288244419,-151.0,0.00083863,120]
[320319896,1711288244428,-502.09578283,0.00084931,120]
[320319897,1711288244437,-151.0,0.00085123,120]
[320319899,1711288244446,-265.41412256,0.0008551,120]
[320319901,1711288244455,-1680.0,0.00086,120]
[320319903,1711288244466,-1000.0,0.00086155,120]
[320319906,1711288244476,-782.77004086,0.000863,120]
[320319907,1711288244485,-151.0,0.00086384,120]
[320319909,1711288244495,-16156.37633239,0.000865,120]
[320319911,1711288244505,-151.0,0.000865,120]
[320319914,1711288244515,-286.3,0.0008689,35]
[320319915,1711288244523,-66991.15644766,0.000869,120]
[320320545,1711288252426,750.74283642,0.000299,2]
[320320791,1711288266320,750.74283642,0.000299,2]
[320320795,1711288288333,199.07632064,0.000299,2]
[320320810,1711289234153,-1970.12271033,0.00020798,2]
[320320811,1711289234174,-3245.76181172,0.0002101,2]
[320320812,1711289247100,-225.40934398,0.0002101,2]
[320320813,1711289249142,-295.76491877,0.0002101,2]
[320320814,1711289262035,193.70534084,0.0001891,2]
[320320815,1711289315303,399.33800355,0.0001891,2]
[320320816,1711289315455,154.8915759,0.0001891,2]
[320320817,1711289316828,154.8915759,0.0001891,2]
[320320818,1711289320532,313.14814238,0.0001891,2]
[320320819,1711289321587,43784.02536143,0.0001891,2]
[320320820,1711289321613,2000.60668277,0.0001891,2]
[320320821,1711289330844,154.8915759,0.0001891,2]
[320320822,1711289331422,154.8915759,0.0001891,2]
[320320823,1711289333313,432.72056074,0.0001891,2]
[320320824,1711289334807,5171.44670874,0.00018721,2]
[320320825,1711289338400,313.14814238,0.0001891,2]
[320320826,1711289346102,-154.8915759,0.00020799,2]
[320320827,1711289346125,-3725.12127113,0.0002101,2]
[320320828,1711289346147,-4977.07600778,0.0002101,2]
[320320829,1711289346655,1043.35804856,0.0001891,2]
[320320830,1711289348870,4944.87054579,0.00018721,2]
[320320831,1711289348906,219.45147382,0.0001891,2]
[320320832,1711289349441,253.64719508,0.0001891,2]
[320320833,1711289352096,-4139.9749009,0.0002101,2]
[320320834,1711289352118,-193.70534084,0.0002391,2]
[320320835,1711289352141,-166.666666,0.00024684,2]
[320320836,1711289352163,-242.198496,0.00024815,2]
[320320837,1711289352186,-3063.83463448,0.00025012,2]
[320320838,1711289355539,16444.93953166,0.0001891,2]
[320320839,1711289358404,313.14814238,0.0001891,2]
[320320840,1711289361170,-10560.45317162,0.00025012,2]
[320320841,1711289361191,-166.666666,0.00025357,2]
[320320842,1711289361213,-154.92253873,0.00026,2]
[320320843,1711289361233,-166.666666,0.0002603,2]
[320320844,1711289361254,-205.23034575,0.00026055,2]
[320320845,1711289361274,-470.70840451,0.00026055,2]
[320320846,1711289361294,-404.69308339,0.00026056,2]
[320320847,1711289361315,-267.65491813,0.00026071,2]
[320320848,1711289361336,-187.57184153,0.00026072,2]
[320320849,1711289361358,-166.666666,0.00026703,2]
[320320850,1711289361383,-1619.429426,0.00027,2]
[320320851,1711289361403,-166.666666,0.00027375,2]
[320320852,1711289361424,-500.0,0.00027397,2]
[320320853,1711289361444,-500.0,0.00027397,2]
[320320854,1711289361464,-500.0,0.00027397,2]
[320320855,1711289361485,-500.0,0.00027397,2]
[320320856,1711289361506,-340.0,0.00027397,2]
[320320857,1711289361525,-166.666666,0.00028048,2]
[320320858,1711289361545,-161.60371361,0.00028769,2]
[320320859,1711289361565,-519.40715896,0.00028769,2]
[320320860,1711289361587,-559.62439523,0.00028769,2]
[320320861,1711289361607,-500.0,0.00028769,2]
[320320862,1711289361627,-500.0,0.00028769,2]
[320320863,1711289361647,-500.0,0.00028769,2]
[320320864,1711289361668,-579.12125443,0.00028769,2]
[320320865,1711289361689,-500.0,0.00028769,2]
[320320866,1711289361711,-500.0,0.00028769,2]
[320320867,1711289361733,-579.84,0.00028769,2]
[320320868,1711289361753,-297.11841611,0.00028769,2]
[320320869,1711289361775,-1000.0,0.00028769,2]
[320320870,1711289361795,-800.58,0.00028769,2]
[320320871,1711289361815,-505.53,0.00028769,2]
[320320872,1711289361838,-500.0,0.00028769,2]
[320320873,1711289361858,-500.0,0.00028769,2]
[320320874,1711289361877,-209.67237575,0.00028769,2]
[320320875,1711289361897,-561.94,0.00028769,2]
[320320876,1711289361917,-588.65,0.00028769,2]
[320320877,1711289361937,-1272.06,0.00028769,2]
[320320878,1711289361956,-500.0,0.00028769,2]
[320320879,1711289361975,-500.0,0.00028769,2]
[320320880,1711289361996,-935.17,0.00028769,2]
[320320881,1711289362017,-500.0,0.00028769,2]
[320320882,1711289362037,-500.0,0.00028769,2]
[320320883,1711289362057,-500.0,0.00028769,2]
[320320884,1711289362076,-500.0,0.00028769,2]
[320320885,1711289362096,-500.0,0.00028769,2]
[320320886,1711289362115,-500.0,0.00028769,2]
[320320887,1711289362136,-500.0,0.00028769,2]
[320320888,1711289362155,-500.0,0.00028769,2]
[320320889,1711289362176,-500.0,0.00028769,2]
[320320890,1711289362195,-599.04,0.00028769,2]
[320320891,1711289362215,-500.0,0.00028769,2]
[320320892,1711289362236,-500.0,0.00028769,2]
[320320893,1711289362256,-604.36,0.00028769,2]
[320320894,1711289362279,-500.0,0.00028769,2]
[320320895,1711289362299,-500.0,0.00028769,2]
[320320896,1711289362318,-80479.8598208,0.0002877,2]
[320320897,1711289362339,-283.26959533,0.000289,2]
[320320898,1711289362358,-837.9609946,0.00029,2]
[320320899,1711289362380,-553.89,0.00029043,2]
[320320900,1711289362511,-500.0,0.00029043,2]
[320320901,1711289362534,-162.01,0.00029043,2]
[320320902,1711289362554,-209.56,0.00029043,2]
[320320903,1711289362574,-500.0,0.00029043,2]
[320320904,1711289362595,-579.84,0.00029043,2]
[320320905,1711289362615,-1000.0,0.00029043,2]
[320320906,1711289362636,-800.58,0.00029043,2]
[320320907,1711289362666,-500.0,0.00029043,2]
[320320908,1711289362688,-500.0,0.00029043,2]
[320320909,1711289362709,-1272.06,0.00029043,2]
[320320910,1711289362733,-391.94,0.00029043,2]
[320320911,1711289362754,-500.0,0.00029043,2]
[320320912,1711289362776,-935.17,0.00029043,2]
[320320913,1711289362798,-500.0,0.00029043,2]
[320320914,1711289362820,-500.0,0.00029043,2]
[320320915,1711289362845,-500.0,0.00029043,2]
[320320916,1711289362868,-405.49,0.00029043,2]
[320320917,1711289362891,-500.0,0.00029043,2]
[320320918,1711289362913,-500.0,0.00029043,2]
[320320919,1711289362935,-500.0,0.00029043,2]
[320320920,1711289362958,-500.0,0.00029043,2]
[320320921,1711289362983,-551.13,0.00029043,2]
[320320922,1711289363005,-500.0,0.00029043,2]
[320320923,1711289363027,-500.0,0.00029317,2]
[320320924,1711289363051,-500.0,0.00029317,2]
[320320925,1711289363075,-579.84,0.00029317,2]
[320320926,1711289363100,-931.18,0.00029317,2]
[320320927,1711289363123,-800.58,0.00029317,2]
[320320928,1711289363146,-500.0,0.00029317,2]
[320320929,1711289363170,-500.0,0.00029317,2]
[320320930,1711289363192,-1272.06,0.00029317,2]
[320320931,1711289363215,-500.0,0.00029317,2]
[320320932,1711289363239,-935.17,0.00029317,2]
[320320933,1711289363261,-586.83,0.00029317,2]
[320320934,1711289363284,-500.0,0.00029317,2]
[320320935,1711289363306,-500.0,0.00029317,2]
[320320936,1711289363329,-166.06,0.00029317,2]
[320320937,1711289363353,-500.0,0.00029317,2]
[320320938,1711289363374,-500.0,0.00029317,2]
[320320939,1711289363396,-500.0,0.00029317,2]
[320320940,1711289363419,-500.0,0.00029317,2]
[320320941,1711289363440,-500.0,0.00029591,2]
[320320942,1711289363460,-500.0,0.00029591,2]
[320320943,1711289363481,-579.84,0.00029591,2]
[320320944,1711289363503,-800.58,0.00029591,2]
[320320945,1711289363524,-500.0,0.00029591,2]
[320320946,1711289363547,-500.0,0.00029591,2]
[320320947,1711289363569,-1272.06,0.00029591,2]
[320320948,1711289363590,-500.0,0.00029591,2]
[320320949,1711289363615,-935.17,0.00029591,2]
[320320950,1711289363636,-500.0,0.00029591,2]
[320320951,1711289363656,-500.0,0.00029591,2]
[320320952,1711289363678,-500.0,0.00029591,2]
[320320953,1711289363699,-648.91,0.00029591,2]
[320320954,1711289363724,-500.0,0.00029591,2]
[320320955,1711289363746,-500.0,0.00029591,2]
[320320956,1711289363771,-181.35,0.00029865,2]
[320320957,1711289363795,-579.84,0.00029865,2]
[320320958,1711289363819,-800.58,0.00029865,2]
[320320959,1711289363843,-628.51,0.00029865,2]
[320320960,1711289363864,-500.0,0.00029865,2]
[320320961,1711289363885,-1272.06,0.00029865,2]
[320320962,1711289363907,-500.0,0.00029865,2]
[320320963,1711289363934,-935.17,0.00029865,2]
[320320964,1711289363959,-500.0,0.00029865,2]
[320320965,1711289363984,-279.41,0.00029865,2]
[320320966,1711289364009,-500.0,0.00029865,2]
[320320967,1711289364030,-225.28,0.00029865,2]
[320320968,1711289364056,-500.0,0.00029865,2]
[320320969,1711289364081,-579.84,0.00030139,2]
[320320970,1711289364105,-800.58,0.00030139,2]
[320320971,1711289364130,-285.42,0.00030139,2]
[320320972,1711289364153,-1272.06,0.00030139,2]
[320320973,1711289364179,-500.0,0.00030139,2]
[320320974,1711289364204,-935.17,0.00030139,2]
[320320975,1711289364229,-500.0,0.00030139,2]
[320320976,1711289364253,-500.0,0.00030139,2]
[320320977,1711289364273,-627.98,0.00030139,2]
[320320978,1711289364295,-579.84,0.00030413,2]
[320320979,1711289364319,-800.58,0.00030413,2]
[320320980,1711289364343,-1272.06,0.00030413,2]
[320320981,1711289364365,-500.0,0.00030413,2]
[320320982,1711289364387,-935.17,0.00030413,2]
[320320983,1711289364410,-500.0,0.00030413,2]
[320320984,1711289364434,-500.0,0.00030413,2]
[320320985,1711289364456,-579.84,0.00030687,2]
[320320986,1711289364479,-800.58,0.00030687,2]
[320320987,1711289364499,-1272.06,0.00030687,2]
[320320988,1711289364521,-508.14,0.00030687,2]
[320320989,1711289364546,-935.17,0.00030687,2]
[320320990,1711289364568,-500.0,0.00030687,2]
[320320991,1711289364592,-500.0,0.00030687,2]
[320320992,1711289364616,-579.84,0.00030961,2]
[320320993,1711289364639,-800.58,0.00030961,2]
[320320994,1711289364664,-1272.06,0.00030961,2]
[320320995,1711289364687,-935.17,0.00030961,2]
[320320996,1711289364711,-500.0,0.00030961,2]
[320320997,1711289364741,-500.0,0.00030961,2]
[320320998,1711289364765,-5316.90779279,0.00031235,3]
[320320999,1711289364789,-579.84,0.00031235,2]
[320321000,1711289364815,-800.58,0.00031235,2]
[320321001,1711289364840,-1272.06,0.00031235,2]
[320321002,1711289364866,-935.17,0.00031235,2]
[320321003,1711289364889,-500.0,0.00031235,2]
[320321004,1711289364914,-552.92892656,0.00031235,2]
[320321005,1711289364936,-153.0,0.00031269,2]
[320321006,1711289364958,-153.0,0.00031269,2]
[320321007,1711289364979,-153.0,0.00031269,2]
[320321008,1711289365001,-153.0,0.00031269,2]
[320321009,1711289365025,-153.0,0.00031269,2]
[320321010,1711289365048,-153.0,0.00031269,2]
[320321011,1711289365070,-153.0,0.00031269,2]
[320321012,1711289365094,-153.0,0.00031269,2]
[320321013,1711289365118,-153.0,0.00031269,2]
[320321014,1711289365139,-153.0,0.00031269,2]
[320321015,1711289365162,-153.0,0.00031269,2]
[320321016,1711289365184,-153.0,0.00031269,2]
[320321017,1711289365207,-201.9092036,0.00031269,2]
[320321018,1711289365230,-153.0,0.00031269,2]
[320321019,1711289365251,-153.0,0.00031269,2]
[320321020,1711289365275,-153.0,0.00031269,2]
[320321021,1711289365297,-153.0,0.00031269,2]
[320321022,1711289365321,-153.0,0.00031269,2]
[320321023,1711289365346,-153.0,0.00031269,2]
[320321024,1711289365368,-201.9092036,0.00031269,2]
[320321025,1711289365509,-153.0,0.00031269,2]
[320321026,1711289365535,-153.0,0.00031269,2]
[320321027,1711289365557,-153.0,0.00031269,2]
[320321028,1711289365577,-153.0,0.00031269,2]
[320321029,1711289365599,-201.9092036,0.00031269,2]
[320321030,1711289365620,-153.0,0.00031269,2]
[320321031,1711289365640,-153.0,0.00031269,2]
[320321032,1711289365661,-579.84,0.00031509,2]
[320321033,1711289365681,-800.58,0.00031509,2]
[320321034,1711289365702,-1272.06,0.00031509,2]
[320321035,1711289365723,-935.17,0.00031509,2]
[320321036,1711289365747,-500.0,0.00031509,2]
[320321037,1711289365769,-579.84,0.00031783,2]
[320321038,1711289365790,-800.58,0.00031783,2]
[320321039,1711289365812,-1272.06,0.00031783,2]
[320321040,1711289365838,-935.17,0.00031783,2]
[320321041,1711289365860,-469.81,0.00031783,2]
[320321042,1711289365880,-579.84,0.00032057,2]
[320321043,1711289365900,-800.58,0.00032057,2]
[320321044,1711289365921,-1272.06,0.00032057,2]
[320321045,1711289365944,-935.17,0.00032057,2]
[320321046,1711289365964,-579.84,0.00032331,2]
[320321047,1711289365984,-800.58,0.00032331,2]
[320321048,1711289366005,-1272.06,0.00032331,2]
[320321049,1711289366028,-935.17,0.00032331,2]
[320321050,1711289366050,-579.84,0.00032605,2]
[320321051,1711289366071,-800.58,0.00032605,2]
[320321052,1711289366093,-1272.06,0.00032605,2]
[320321053,1711289366115,-935.17,0.00032605,2]
[320321054,1711289366135,-579.84,0.00032879,2]
[320321055,1711289366156,-800.58,0.00032879,2]
[320321056,1711289366177,-1272.06,0.00032879,2]
[320321057,1711289366198,-935.17,0.00032879,2]
[320321058,1711289366218,-579.84,0.00033153,2]
[320321059,1711289366238,-800.58,0.00033153,2]
[320321060,1711289366258,-1272.06,0.00033153,2]
[320321061,1711289366278,-935.17,0.00033153,2]
[320321062,1711289366300,-579.84,0.00033427,2]
[320321063,1711289366323,-800.58,0.00033427,2]
[320321064,1711289366349,-1272.06,0.00033427,2]
[320321065,1711289366381,-935.17,0.00033427,2]
[320321066,1711289366402,-579.84,0.00033701,2]
[320321067,1711289366422,-800.58,0.00033701,2]
[320321068,1711289366442,-1272.06,0.00033701,2]
[320321069,1711289366463,-935.17,0.00033701,2]
[320321070,1711289366484,-579.84,0.00033975,2]
[320321071,1711289366505,-800.58,0.00033975,2]
[320321072,1711289366526,-1272.06,0.00033975,2]
[320321073,1711289366548,-935.17,0.00033975,2]
[320321074,1711289366569,-579.84,0.00034249,2]
[320321075,1711289366592,-800.58,0.00034249,2]
[320321076,1711289366613,-1272.06,0.00034249,2]
[320321077,1711289366635,-935.17,0.00034249,2]
[320321078,1711289366656,-579.84,0.00034523,2]
[320321079,1711289366676,-800.58,0.00034523,2]
[320321080,1711289366696,-1272.06,0.00034523,2]
[320321081,1711289366719,-935.17,0.00034523,2]
[320321082,1711289366744,-237.29404609,0.00034796,2]
[320321083,1711289366858,1043.35804856,0.0001891,2]
[320321084,1711289367122,-155.26708254,0.00026055,2]
[320321085,1711289367144,-800.58,0.00034796,2]
[320321086,1711289367164,-1272.06,0.00034796,2]
[320321087,1711289367185,-935.17,0.00034796,2]
[320321088,1711289367205,-593.28409045,0.00035,2]
[320321089,1711289367225,-154.8915759,0.00035,30]
[320321090,1711289367247,-800.74,0.0003507,2]
[320321091,1711289367267,-1272.09,0.0003507,2]
[320321092,1711289367288,-935.18,0.0003507,2]
[320321093,1711289378390,313.14814238,0.00025012,2]
[320321094,1711289382626,1043.35804856,0.00025012,2]
[320321095,1711289385983,500.0,0.00028769,2]
[320321096,1711289387392,154.8915759,0.00035,30]
[320321097,1711289394272,412.51762625,0.00028769,2]
[320321098,1711289394452,313.14814238,0.00025012,2]
[320321099,1711289400641,1043.35804856,0.00025012,2]
[320321100,1711289409445,240.80567734,0.00035,30]
[320321101,1711289410401,451.64891159,0.00025012,2]
[320321102,1711289416630,1401.82463339,0.00035,30]
[320321131,1711289432633,1401.82463339,0.00035,30]
[320321664,1711289443662,-5208.4740646,0.00026057,2]
[320321668,1711289443716,-1784.200002,0.00026057,2]
[320321780,1711289446687,-347.56,0.00026057,2]
[320321832,1711289447160,-10770.83833323,0.00026057,2]
[320321834,1711289447169,-300.0,0.00026057,2]
[320321836,1711289447179,-242.198496,0.00037223,2]
[320321838,1711289447189,-173.11394511,0.00037628,8]
[320321840,1711289447199,-500.0,0.00037728,4]
[320321842,1711289447210,-500.0,0.00037728,4]
[320321844,1711289447219,-500.0,0.00037728,4]
[320321846,1711289447230,-500.0,0.00037728,4]
[320321847,1711289447239,-225.40934398,0.00037728,4]
[320321849,1711289447249,-261.10942718,0.00038002,4]
[320321851,1711289447260,-572.61,0.00038824,4]
[320321853,1711289447270,-500.0,0.00038824,4]
[320321856,1711289447279,-500.0,0.00038824,4]
[320321858,1711289447289,-154.8915759,0.0004,2]
[320321859,1711289447298,-500.0,0.00041289,4]
[320321862,1711289447308,-1303.1,0.00041289,4]
[320321864,1711289447317,-1303.1,0.00041563,4]
[320321865,1711289447326,-1303.1,0.00041837,4]
[320321868,1711289447335,-1303.1,0.00042111,4]
[320321869,1711289447345,-1303.1,0.00042385,4]
[320321872,1711289447355,-1303.1,0.00042659,4]
[320321873,1711289447364,-1303.1,0.00042933,4]
[320321875,1711289447374,-1303.1,0.00043207,4]
[320321877,1711289447384,-283.2695953,0.00043375,2]
[320321879,1711289447393,-1303.1,0.00043481,4]
[320321881,1711289447403,-1303.1,0.00043755,4]
[320321883,1711289447414,-1002.62544318,0.00043899,2]
[320321885,1711289447425,-1303.1,0.00044029,4]
[320321887,1711289447434,-1303.1,0.00044303,4]
[320321889,1711289447443,-1303.1,0.00044577,4]
[320321891,1711289447452,-1303.1,0.00044851,4]
[320321893,1711289447462,-1303.1,0.00045125,4]
[320321895,1711289447471,-1303.1,0.00045399,4]
[320321897,1711289447480,-1303.1,0.00045673,4]
[320321899,1711289447489,-1303.1,0.00045947,4]
[320321901,1711289447498,-1303.1,0.00046221,4]
[320321903,1711289447507,-1303.1,0.00046495,4]
[320321905,1711289447519,-1303.1,0.00046769,4]
[320321907,1711289447527,-1303.1,0.00047043,4]
[320321909,1711289447536,-1303.1,0.00047317,4]
[320321911,1711289447546,-2486.64787102,0.0004759,2]
[320321913,1711289447555,-590.98597023,0.0004759,2]
[320322085,1711289450645,1366.67561902,0.00035,30]
[320322097,1711289496169,500.0,0.00028769,2]
[320322098,1711289497989,500.0,0.00028769,2]
[320322099,1711289508347,500.0,0.00028769,2]
[320322100,1711289509821,598.42,0.00029043,2]
[320322101,1711289510622,500.0,0.00028769,2]
[320322102,1711289515238,500.0,0.00028769,2]
[320322103,1711289518892,500.0,0.00028769,2]
[320322104,1711289520049,500.0,0.00028769,2]
[320322105,1711289521725,500.0,0.00028769,2]
[320322106,1711289532859,500.0,0.00028769,2]
[320322107,1711289533152,624.87,0.00029043,2]
[320322108,1711289534461,500.0,0.00028769,2]
[320322110,1711289539342,500.0,0.00028769,2]
[320322111,1711289539923,500.0,0.00029043,2]
[320322112,1711289546784,480.51373549,0.00028769,2]
[320322121,1711290338142,-180.18452548,0.00025797,2]
[320322122,1711290338163,-816.34141016,0.00025797,2]
[320322123,1711290338184,-285.38678327,0.00025797,2]
[320322125,1711290436104,-547.85810235,0.0002579,2]
[320322126,1711290552198,-270.49584508,0.0002369,2]
[320322127,1711290552223,-877.29562893,0.00023691,2]
[320322128,1711290552245,-3508.32344105,0.00023692,2]
[320322129,1711290552267,-1301.1712291,0.00023693,2]
[320322130,1711290552287,-156.39858452,0.00023693,2]
[320322131,1711290552307,-864.19676408,0.00023694,2]
[320322132,1711290552327,-608.84173967,0.00023694,2]
[320322133,1711290552349,-559.89028424,0.00023694,2]
[320322134,1711290552370,-1601.06287083,0.00023697,2]
[320322135,1711290552390,-180.18452548,0.00025737,2]
[320322136,1711290552409,-152.11549897,0.00025738,2]
[320322137,1711290552429,-1956.4009711,0.00025789,2]
[320322138,1711290552449,-1373.65613232,0.0002579,2]
[320322139,1711290552469,-271.11235426,0.00025792,2]
[320322140,1711290552489,-2604.83304898,0.00025798,2]
[320322141,1711290552509,-162.096103,0.00025913,2]
[320322142,1711290552529,-166.666666,0.00025922,2]
[320322143,1711290552549,-166.666666,0.00026628,2]
[320322144,1711290552570,-178.570803,0.00026861,2]
[320322145,1711290552591,-1619.429426,0.00027,2]
[320322146,1711290552611,-166.666666,0.00027335,2]
[320322147,1711290552631,-166.666666,0.00028042,2]
[320322148,1711290552651,-1601.06287083,0.00028697,2]
[320322149,1711290552670,-166.666666,0.00028748,2]
[320322150,1711290552690,-661.46279588,0.00028767,2]
[320322151,1711290552709,-171.4072839,0.00028768,2]
[320322152,1711290552729,-1000.0,0.00028768,120]
[320322153,1711290552748,-750.74283642,0.00028769,2]
[320322154,1711290552768,-434.06690122,0.00028769,2]
[320322155,1711290552788,-500.0,0.00028769,2]
[320322156,1711290552808,-500.0,0.00028769,2]
[320322157,1711290552827,-500.0,0.00028769,2]
[320322158,1711290552848,-500.0,0.00028769,2]
[320322159,1711290552867,-500.0,0.00028769,2]
[320322160,1711290552887,-500.0,0.00028769,2]
[320322161,1711290552908,-500.0,0.00028769,2]
[320322162,1711290552928,-500.0,0.00028769,2]
[320322163,1711290552948,-500.0,0.00028769,2]
[320322164,1711290552968,-500.0,0.00028769,2]
[320322165,1711290552988,-500.0,0.00028769,2]
[320322166,1711290553010,-604.14724391,0.00028769,2]
[320322167,1711290553031,-500.0,0.00028769,2]
[320322168,1711290553051,-500.0,0.00028769,2]
[320322169,1711290553078,-342.21528112,0.00028939,2]
[320322170,1711290553103,-660.02380636,0.0002894,2]
[320322171,1711290553125,-500.0,0.00029039,2]
[320322172,1711290553146,-500.0,0.00029039,2]
[320322173,1711290553170,-500.0,0.00029039,2]
[320322174,1711290553195,-500.0,0.00029039,2]
[320322175,1711290553218,-217.91925287,0.00029039,2]
[320322176,1711290553239,-500.0,0.00029039,2]
[320322177,1711290553259,-500.0,0.00029039,2]
[320322178,1711290553279,-500.0,0.00029039,2]
[320322179,1711290553300,-500.0,0.00029039,2]
[320322180,1711290553322,-500.0,0.00029039,2]
[320322181,1711290553346,-407.16230999,0.00029039,2]
[320322182,1711290553368,-500.0,0.00029039,2]
[320322183,1711290553389,-500.0,0.00029039,2]
[320322184,1711290553409,-500.0,0.00029039,2]
[320322185,1711290553429,-500.0,0.00029039,2]
[320322186,1711290553449,-459.8250657,0.00029039,2]
[320322187,1711290553469,-500.0,0.00029039,2]
[320322188,1711290553489,-500.0,0.00029039,2]
[320322189,1711290553511,-500.0,0.00029039,2]
[320322190,1711290553531,-500.0,0.00029039,2]
[320322191,1711290553553,-500.0,0.00029039,2]
[320322192,1711290553576,-500.0,0.00029039,2]
[320322193,1711290553599,-500.0,0.00029039,2]
[320322194,1711290553619,-500.0,0.00029039,2]
[320322195,1711290553639,-500.0,0.00029039,2]
[320322196,1711290553660,-500.0,0.00029039,2]
[320322197,1711290553680,-500.0,0.00029039,2]
[320322198,1711290553700,-500.0,0.00029039,2]
[320322199,1711290553720,-500.0,0.00029039,2]
[320322200,1711290553741,-500.0,0.00029039,2]
[320322201,1711290553762,-500.0,0.00029039,2]
[320322202,1711290553782,-500.0,0.00029039,2]
[320322203,1711290553802,-500.0,0.00029039,2]